bitfinex-derivatives/quotes_BNBF0:USTF0_20250603
["timestamp","ask_amount","ask_price","bid_price","bid_amount"]
[1748951122516,1.145,665.74,665.67,0.95821989]
[1748951122814,1.145,665.74,665.68,0.95821989]
[1748951123013,1.145,665.74,665.69,0.95821989]
[1748951123215,1.145,665.74,665.7,0.95821989]
[1748951123413,1.145,665.74,665.71,0.95821989]
[1748951123611,1.145,665.74,665.72,0.95821989]
[1748951123817,1.145,665.74,665.73,0.95821989]
[1748951126114,1.145,665.74,665.53,0.97804869]
[1748951126312,1.145,665.74,665.54,1.93623951]
[1748951126513,1.145,665.74,665.55,0.95819082]
[1748951126716,1.00526384,665.74,665.56,0.95819082]
[1748951127018,1.00526384,665.74,665.57,0.95819082]
[1748951127219,1.00526384,665.74,665.58,0.95819082]
[1748951127514,1.00526384,665.74,665.59,0.95819082]
[1748951127719,1.00526384,665.74,665.6,0.95819082]
[1748951127921,1.00526384,665.74,665.61,0.95819082]
[1748951128119,1.00526384,665.74,665.62,0.95819082]
[1748951128320,1.00526384,665.74,665.63,0.95819082]
[1748951128517,1.00526384,665.74,665.64,0.95819082]
[1748951128719,1.00526384,665.74,665.69,0.97804869]
[1748951128916,1.00526384,665.74,665.7,0.95819082]
[1748951129113,1.00526384,665.74,665.71,0.95819082]
[1748951129318,1.49618131,665.72,665.38,0.97807554]
[1748951129517,1.49618131,665.72,665.7,0.97807554]
[1748951129718,1.49618131,665.72,665.71,0.95818493]
[1748951130114,1.00526384,665.74,665.71,0.95818493]
[1748951130416,1.00526384,665.74,665.72,0.95818493]
[1748951130716,1.00526384,665.74,665.73,0.95818493]
[1748951132917,1.00526384,665.74,665.73,1.59697671]
[1748951136923,0.7816972,665.74,665.73,1.59697671]
[1748951146837,1.49607201,665.74,665.73,1.59697671]
[1748951148538,1.75760914,665.76,665.73,1.59697671]
[1748951148832,1.75760914,665.76,665.74,1.59697671]
[1748951149030,1.75760914,665.76,665.75,1.59697671]
[1748951149437,0.26153713,665.76,665.75,1.59697671]
[1748951150832,1.75749733,665.76,665.75,1.59697671]
[1748951151433,0.26153713,665.76,665.75,1.59697671]
[1748951155141,1.75740757,665.76,665.75,1.59697671]
[1748951157139,0.26153713,665.76,665.75,1.59697671]
[1748951157545,1.75740142,665.76,665.75,1.59697671]
[1748951158348,0.26153713,665.76,665.75,1.59697671]
[1748951160446,0.26153713,665.76,665.75,0.63879178]
[1748951166945,1.17224563,665.82,665.75,0.63879178]
[1748951167145,1.49586321,665.87,665.76,0.63879178]
[1748951167346,1.49586321,665.87,665.77,0.63879178]
[1748951167642,1.49586321,665.87,665.78,0.63879178]
[1748951167847,1.49586321,665.87,665.53,0.97739589]
[1748951167848,1.49586321,665.87,665.79,0.63879178]
[1748951168049,1.49586321,665.87,665.8,0.63879178]
[1748951168249,1.49586321,665.87,665.81,0.63879178]
[1748951168451,1.49586321,665.87,665.82,0.63879178]
[1748951168646,1.49586321,665.87,665.83,0.63879178]
[1748951168849,1.49586321,665.87,665.84,0.63879178]
[1748951169049,1.49586321,665.87,665.85,0.63879178]
[1748951169248,1.49586321,665.87,665.86,0.63879178]
[1748951169851,2.24494534,665.93,665.86,1.5969236]
[1748951170052,2.24494534,665.93,665.87,1.5969236]
[1748951170251,2.24494534,665.92,665.88,1.5969236]
[1748951170451,2.50642548,665.92,665.89,1.5969236]
[1748951170751,2.50642548,665.92,665.9,1.5969236]
[1748951170950,0.26148014,665.92,665.91,1.5969236]
[1748951172551,0.26148014,665.92,665.91,0.63879178]
[1748951182359,0.26148014,665.92,665.91,1.59692487]
[1748951182757,2.50642548,665.92,665.91,1.59692487]
[1748951184561,0.26148014,665.92,665.91,1.59692487]
[1748951186962,0.12175099,665.92,665.91,1.59692487]
[1748951187167,2.032,666.13,665.91,1.59692487]
[1748951187467,0.3002462,666.12,665.92,1.59692487]
[1748951187768,0.3002462,666.12,665.93,1.59692487]
[1748951188065,0.3002462,666.12,665.94,1.59692487]
[1748951188268,0.3002462,666.12,665.95,1.59692487]
[1748951188462,0.3002462,666.12,665.96,0.05889227]
[1748951188761,0.3002462,666.12,665.6,0.97800283]
[1748951188967,1.49770907,665.83,665.5,0.97800283]
[1748951189160,1.49770907,665.82,665.5,0.97800283]
[1748951189364,1.49770907,665.82,665.59,0.97800283]
[1748951189761,1.49770907,665.82,665.54,0.97800283]
[1748951190265,0.26153517,665.76,665.56,0.97800283]
[1748951190863,1.089,665.75,665.56,0.97800283]
[1748951192268,1.089,665.75,665.54,0.97800283]
[1748951195966,1.089,665.75,665.52,0.97800283]
[1748951196167,1.089,665.75,665.13,2.1050013]
[1748951196369,1.089,665.75,665.14,0.62079772]
[1748951196670,1.089,665.75,665.13,2.1050013]
[1748951196967,0.86543122,665.75,665.13,0.97800283]
[1748951198068,0.86543122,665.75,665.14,0.97800283]
[1748951198568,0.86543122,665.75,665.15,0.62079932]
[1748951198874,0.86543122,665.75,665.45,0.97800283]
[1748951199571,0.86543122,665.75,665.48,0.97800283]
[1748951199970,0.86543122,665.75,665.52,0.97800283]
[1748951200973,0.86543122,665.75,665.51,0.97800283]
[1748951201175,0.86543122,665.75,665.29,0.97800283]
[1748951201374,0.86543122,665.75,665.28,0.97800283]
[1748951201976,0.86543122,665.75,665.2,0.97800283]
[1748951202276,0.86543122,665.75,665.22,0.97800283]
[1748951202779,0.86543122,665.75,665.23,0.62084937]
[1748951202977,0.86543122,665.75,665.24,0.62084937]
[1748951203178,0.86543122,665.75,665.2,0.97800283]
[1748951203372,0.86543122,665.75,665.21,0.97800283]
[1748951203570,0.86543122,665.75,665.17,1.12692965]
[1748951203571,0.86543122,665.75,665.2,0.97800283]
[1748951203775,0.86543122,665.75,665.21,0.62079494]
[1748951203971,0.86543122,665.75,665.16,2.10493248]
[1748951204172,0.86543122,665.75,665.72,0.97780583]
[1748951204573,0.26153517,665.76,665.73,0.97780583]
[1748951205677,0.26153517,665.76,665.16,1.12690587]
[1748951206078,0.26153517,665.76,665.41,0.97800283]
[1748951206282,0.26153517,665.76,665.33,0.97800283]
[1748951206884,0.12180625,665.76,665.33,0.97800283]
[1748951207081,1.49770907,665.87,665.33,0.97800283]
[1748951207688,1.49770907,665.87,665.34,0.97800283]
[1748951207888,1.49770907,665.87,665.33,0.97800283]
[1748951208090,1.49770907,665.87,665.34,0.97800283]
[1748951208987,1.49770907,665.87,665.47,0.97800283]
[1748951209187,1.49770907,665.85,665.47,0.97800283]
[1748951210184,0.26153124,665.76,665.47,0.97800283]
[1748951210386,0.26153124,665.76,662.55,1.27751697]
[1748951210690,0.26153124,665.76,664.45,0.30100082]
[1748951210991,1.16,665.75,664.45,0.30100082]
[1748951211192,1.16,665.75,665.63,0.9778381]
[1748951211391,1.16,665.75,665.65,0.9778381]
[1748951211790,1.16,665.75,665.74,0.9778381]
[1748951212392,1.16,665.75,665.21,1.1268903]
[1748951212693,1.16,665.75,665.24,0.9778381]
[1748951213687,1.16,665.75,665.32,0.9778381]
[1748951214087,1.16,665.75,665.29,0.9778381]
[1748951214488,1.16,665.75,665.62,0.9778381]
[1748951215690,1.16,665.75,665.63,0.9778381]
[1748951216096,1.49857073,665.73,665.7,0.9778381]
[1748951216895,1.49857073,665.73,665.71,0.9778381]
[1748951217595,1.49857073,665.72,665.71,0.9778381]
[1748951218090,0.26153124,665.76,665.26,2.52381937]
[1748951218091,1.49857073,665.73,665.7,0.9778381]
[1748951218591,0.26153124,665.76,665.72,0.9778381]
[1748951219098,0.26153124,665.76,665.57,0.97788013]
[1748951220897,0.26153124,665.76,665.23,1.1269078]
[1748951220898,0.26153124,665.76,665.58,0.97788013]
[1748951222098,0.26153124,665.76,665.63,0.97788013]
[1748951223299,0.26153124,665.76,665.62,0.97788013]
[1748951223700,0.26153124,665.76,665.63,0.97788013]
[1748951224200,0.26153124,665.76,665.64,0.97788013]
[1748951225201,0.26153124,665.76,665.65,0.97788013]
[1748951226902,0.68427223,665.75,665.65,0.97788013]
[1748951227103,0.46070779,665.75,665.65,0.97788013]
[1748951228004,0.46070779,665.75,665.66,0.97788013]
[1748951228705,0.46070779,665.75,665.67,1.93601225]
[1748951228905,0.46070779,665.75,664.98,2.25378061]
[1748951228906,1.49851876,665.72,665.68,2.23565688]
[1748951229098,1.49851876,665.72,665.69,2.23565688]
[1748951229300,1.49851876,665.72,665.7,0.95813212]
[1748951229505,0.46070779,665.75,665.71,0.95813212]
[1748951229699,0.46070779,665.75,665.72,0.95813212]
[1748951229899,0.46070779,665.75,665.73,0.95813212]
[1748951230101,0.46070779,665.75,665.74,0.95813212]
[1748951232908,1.95922655,665.75,665.74,0.95813212]
[1748951233708,0.46070779,665.75,665.74,0.95813212]
[1748951242209,1.95922655,665.75,665.74,0.95813212]
[1748951242710,0.46070779,665.75,665.74,0.95813212]
[1748951243015,1.95926559,665.75,665.74,0.95813212]
[1748951243415,0.46070779,665.75,665.74,0.95813212]
[1748951245419,1.95923397,665.75,665.74,0.95813212]
[1748951245617,0.46070779,665.75,665.56,0.97786035]
[1748951245913,0.46070779,665.75,665.54,0.9778576]
[1748951248118,0.46070779,665.75,665.53,0.9778576]
[1748951248618,0.46070779,665.75,665.54,0.63871798]
[1748951248820,0.46070779,665.75,665.55,0.63871798]
[1748951249015,0.46070779,665.75,665.56,0.63871798]
[1748951249215,0.46070779,665.75,665.57,0.63871798]
[1748951249416,0.46070779,665.75,665.58,0.63871798]
[1748951249615,0.46070779,665.75,665.59,0.63871798]
[1748951249813,0.46070779,665.75,665.6,0.63871798]
[1748951250115,0.46070779,665.75,665.61,0.63871798]
[1748951250319,0.46070779,665.75,665.62,0.63871798]
[1748951250519,0.46070779,665.75,665.63,0.63871798]
[1748951250718,0.46070779,665.75,665.64,0.63871798]
[1748951250914,0.46070779,665.75,665.65,0.63871798]
[1748951251218,0.46070779,665.75,665.66,0.63871798]
[1748951251417,0.46070779,665.75,665.67,0.63871798]
[1748951251618,0.46070779,665.75,665.68,0.63871798]
[1748951251818,0.46070779,665.75,665.69,0.63871798]
[1748951252018,0.46070779,665.75,665.7,0.63871798]
[1748951252314,0.46070779,665.75,665.71,0.63871798]
[1748951252513,0.46070779,665.75,665.72,0.63871798]
[1748951252720,0.46070779,665.75,665.73,0.63871798]
[1748951252915,0.46070779,665.75,665.74,0.63871798]
[1748951255523,0.32098817,665.75,665.74,1.5968501]
[1748951257217,0.09743651,665.75,665.74,1.5968501]
[1748951258227,0.09743651,665.75,665.74,0.63871798]
[1748951268234,0.09743651,665.75,665.74,1.59680793]
[1748951270235,0.26153124,665.76,665.74,1.59680793]
[1748951270430,0.26153124,665.76,665.75,1.59680793]
[1748951275640,0.12180993,665.76,665.75,1.59680793]
[1748951275841,1.226,665.82,665.75,1.59680793]
[1748951276039,1.226,665.82,665.76,1.59680793]
[1748951276339,1.226,665.82,665.77,1.59680793]
[1748951276541,1.226,665.82,665.78,1.59680793]
[1748951276743,1.226,665.82,665.79,1.59680793]
[1748951277041,1.226,665.82,665.8,1.59680793]
[1748951277341,1.226,665.82,665.81,1.59680793]
[1748951278843,1.48750274,665.82,665.81,1.59680793]
[1748951282245,2.98602892,665.82,665.81,1.59680793]
[1748951284243,1.48750274,665.82,665.81,1.59680793]
[1748951287343,1.26394897,665.82,665.81,1.59680793]
[1748951287541,0.26150274,665.82,665.81,1.59680793]
[1748951293355,0.26150274,665.82,665.81,2.87425199]
[1748951294054,2.50935884,665.82,665.81,2.87425199]
[1748951295649,2.36963702,665.82,665.81,1.59680793]
[1748951295851,2.36963702,665.82,665.81,2.87426281]
[1748951296050,2.2478561,665.82,665.81,2.87426281]
[1748951296252,1.089,665.98,665.81,2.87426281]
[1748951296449,2.24917892,665.82,665.5,1.39691157]
[1748951296650,1.49945277,665.71,665.51,2.87426245]
[1748951296856,1.12459501,665.6,665.52,2.87426245]
[1748951297156,1.12459501,665.6,665.53,2.87426245]
[1748951297450,1.12459501,665.6,665.54,2.87426245]
[1748951297754,1.12459501,665.6,665.55,2.87426245]
[1748951297958,1.12459501,665.61,665.56,2.87426245]
[1748951298259,1.12459501,665.6,665.57,2.87426245]
[1748951298460,1.12459501,665.6,665.58,2.87426245]
[1748951298651,1.12459501,665.6,665.59,2.87426245]
[1748951298853,1.3861518,665.6,665.59,2.87426245]
[1748951299256,0.26155679,665.6,665.59,1.59681247]
[1748951310264,0.26155679,665.6,665.59,2.87426256]
[1748951310464,0.26155679,665.6,665.59,1.59681247]
[1748951315670,0.12183574,665.6,665.59,1.59681247]
[1748951315865,1.12296562,665.67,665.59,1.59681247]
[1748951316069,1.12296562,665.67,665.6,1.59681247]
[1748951316267,1.12296562,665.67,665.61,1.59681247]
[1748951316470,1.12296562,665.67,665.62,1.59681247]
[1748951316668,1.12296562,665.67,665.57,0.9779603]
[1748951316669,1.12296562,665.67,665.63,1.59681247]
[1748951316869,1.12296562,665.67,665.64,1.59681247]
[1748951317070,1.447,665.73,665.64,1.59681247]
[1748951317271,0.89928221,665.67,665.65,1.59681247]
[1748951317566,0.89928221,665.67,665.66,1.59681247]
[1748951318467,1.447,665.73,665.66,1.59681247]
[1748951318671,1.447,665.73,665.67,1.59681247]
[1748951318872,0.26153615,665.72,665.68,1.59681247]
[1748951319073,0.26153615,665.72,665.69,1.59681247]
[1748951319272,0.26153615,665.72,665.7,1.59681247]
[1748951319470,0.26153615,665.72,665.71,1.59681247]
[1748951335697,0.12181528,665.72,665.71,1.59681247]
[1748951335900,1.309,665.76,665.71,1.59681247]
[1748951336197,1.309,665.76,665.72,1.59681247]
[1748951336399,1.309,665.76,665.73,1.59681247]
[1748951336698,1.309,665.76,665.74,1.59681247]
[1748951336893,1.309,665.76,665.75,1.59681247]
[1748951338700,1.309,665.76,665.75,0.63872499]
[1748951338897,0.26155581,665.76,665.75,0.63872499]
[1748951346706,0.26155581,665.76,665.75,1.59708131]
[1748951347405,0.03793937,665.76,665.75,1.59708131]
[1748951347602,3.25717892,665.85,665.75,1.59708131]
[1748951347802,3.25717892,665.85,665.23,0.97798335]
[1748951347803,1.30836795,665.85,665.78,0.97477871]
[1748951348106,1.30836795,665.85,665.79,1.59708131]
[1748951348406,1.30836795,665.85,665.8,1.59708131]
[1748951348706,0.30036795,665.85,665.81,1.59708131]
[1748951348907,0.30036795,665.85,665.82,1.59708131]
[1748951349109,0.30036795,665.85,665.83,1.59708131]
[1748951349308,0.30036795,665.85,665.84,1.59708131]
[1748951350509,0.56191196,665.85,665.84,1.59708131]
[1748951351105,0.56191196,665.85,665.28,0.97796514]
[1748951351313,1.49097439,665.66,665.51,0.97796514]
[1748951351511,1.49097439,665.67,665.51,0.97796514]
[1748951351711,1.49097439,665.67,665.01,1.1242605]
[1748951351712,1.49097439,665.67,665.5,0.97796514]
[1748951352105,1.49097439,665.69,665.5,0.97796514]
[1748951352307,1.49097439,665.65,665.5,0.97796514]
[1748951352511,1.49097439,665.66,665.5,0.97796514]
[1748951352711,1.49097439,665.65,665.5,0.97796514]
[1748951352911,1.49097439,665.66,665.49,0.97796514]
[1748951355610,1.49097439,665.67,665.49,0.97796514]
[1748951355812,1.35121443,665.67,665.49,0.97796514]
[1748951356016,0.56191196,665.85,665.49,0.97796514]
[1748951356514,0.56191196,665.85,665.41,0.57251034]
[1748951357717,0.56191196,665.85,665.42,0.57251034]
[1748951358315,0.56191196,665.85,665.41,0.57251034]
[1748951358613,0.56191196,665.85,665.42,0.57251034]
[1748951358815,0.56191196,665.85,665.4,0.57251034]
[1748951359217,0.56191196,665.85,665.38,0.57251034]
[1748951360716,0.56191196,665.85,665.39,0.57251034]
[1748951361119,0.56191196,665.85,665.57,0.57263896]
[1748951361414,0.56191196,665.85,665.66,0.57263896]
[1748951361918,0.56191196,665.85,665.32,0.97428156]
[1748951361919,0.56191196,665.85,665.67,0.57263896]
[1748951362219,0.56191196,665.85,665.68,0.57263896]
[1748951362719,0.56191196,665.85,665.67,0.57263896]
[1748951363618,0.56191196,665.85,665.68,0.57263896]
[1748951364018,0.56191196,665.85,665.67,0.57263896]
[1748951364519,0.56191196,665.85,665.68,0.57263896]
[1748951365013,0.56191196,665.85,665.7,0.57263896]
[1748951366415,0.56191196,665.85,665.72,0.57263896]
[1748951367526,0.794,665.84,665.73,0.57263896]
[1748951368420,0.794,665.84,665.67,0.97428156]
[1748951369519,0.794,665.84,665.68,0.97428156]
[1748951371125,0.794,665.84,665.24,0.97406274]
[1748951371521,0.794,665.84,665.25,0.97406274]
[1748951371825,0.794,665.84,665.24,0.97406274]
[1748951372021,0.794,665.84,665.25,0.97406274]
[1748951372226,0.794,665.84,665.24,0.97406274]
[1748951372426,0.794,665.84,665.29,0.97406274]
[1748951372627,0.794,665.84,665.28,0.97406274]
[1748951374322,0.794,665.84,664.77,2.25378061]
[1748951374323,0.794,665.84,665.8,0.97478738]
[1748951374828,0.794,665.84,665.79,0.97478738]
[1748951375028,0.794,665.84,665.2,0.97406274]
[1748951375229,0.794,665.84,665.77,0.9746373]
[1748951375631,0.794,665.84,665.79,0.9746373]
[1748951375831,0.65428293,665.84,665.79,0.9746373]
[1748951376029,0.56191196,665.85,665.79,0.9746373]
[1748951376929,0.56191196,665.85,665.78,0.9746373]
[1748951377125,0.56191196,665.85,665.79,0.9746373]
[1748951377332,0.33836491,665.85,665.79,0.9746373]
[1748951377727,0.33836491,665.85,665.78,0.9746373]
[1748951378131,0.33836491,665.85,665.79,0.9746373]
[1748951378733,0.33836491,665.85,665.78,0.9746373]
[1748951381035,0.33836491,665.85,665.61,0.97406274]
[1748951381432,0.33836491,665.85,665.69,0.97406274]
[1748951381634,0.33836491,665.85,665.65,0.97406274]
[1748951382032,0.33836491,665.85,665.67,0.97406274]
[1748951382235,0.33836491,665.85,665.72,0.97406274]
[1748951382738,0.33836491,665.85,665.81,0.97406274]
[1748951383737,0.33836491,665.85,665.8,0.97406274]
[1748951383936,0.33836491,665.85,665.81,0.97406274]
[1748951384136,0.33836491,665.85,665.51,0.97451563]
[1748951385139,0.33836491,665.85,665.7,0.97451563]
[1748951385538,0.33836491,665.85,665.71,0.97451563]
[1748951385737,0.33836491,665.85,665.74,0.97451563]
[1748951386137,0.33836491,665.85,665.83,0.97442467]
[1748951386341,0.949,665.84,665.83,0.97442467]
[1748951386641,0.949,665.84,665.77,0.97442467]
[1748951387737,0.949,665.84,665.78,0.97442467]
[1748951388643,0.949,665.84,665.8,0.97442467]
[1748951389144,0.949,665.84,665.2,0.97451563]
[1748951389541,0.949,665.84,665.27,0.97451563]
[1748951389746,0.949,665.84,665.28,0.97451563]
[1748951390147,0.949,665.84,665.27,0.97451563]
[1748951390343,0.949,665.84,665.24,0.97451563]
[1748951390647,0.949,665.84,665.29,0.97451563]
[1748951390840,0.949,665.84,665.3,0.97451563]
[1748951391044,0.949,665.84,665.31,0.95805759]
[1748951391242,0.949,665.84,665.32,0.95805759]
[1748951391446,0.949,665.84,665.33,0.95805759]
[1748951391645,0.949,665.84,665.32,0.97451563]
[1748951391646,0.949,665.84,665.34,0.95805759]
[1748951391845,0.949,665.84,665.35,0.95805759]
[1748951392050,0.949,665.84,665.36,0.95805759]
[1748951392245,0.949,665.84,665.37,0.95805759]
[1748951392449,0.949,665.84,665.38,0.95805759]
[1748951392749,0.949,665.84,665.39,0.95805759]
[1748951392945,0.949,665.84,665.4,0.95805759]
[1748951393145,0.949,665.84,665.41,0.95805759]
[1748951393346,0.949,665.84,665.82,0.97553949]
[1748951393546,0.949,665.84,665.83,0.95805759]
[1748951393746,0.949,665.84,665.56,0.97553949]
[1748951393949,0.949,665.84,665.57,0.95806029]
[1748951394249,0.949,665.84,665.58,0.95806029]
[1748951394446,0.949,665.84,665.59,0.95806029]
[1748951394649,0.949,665.84,665.6,0.95806029]
[1748951394950,0.949,665.84,665.53,0.97553949]
[1748951394951,0.949,665.84,665.61,0.95806029]
[1748951395147,0.949,665.84,665.62,0.95806029]
[1748951395352,0.949,665.84,665.63,0.95806029]
[1748951395548,0.949,665.84,665.64,0.95806029]
[1748951395751,0.80927884,665.84,665.65,0.95806029]
[1748951395952,0.80927884,665.84,665.73,0.97553949]
[1748951396152,0.80927884,665.84,665.74,0.95806029]
[1748951396354,0.80927884,665.84,665.77,0.97553949]
[1748951396554,0.80927884,665.84,665.78,0.95806029]
[1748951396755,0.80927884,665.84,665.79,0.95806029]
[1748951396955,0.80927884,665.84,665.8,0.95806029]
[1748951397155,0.80927884,665.84,665.81,0.95806029]
[1748951397354,0.80927884,665.84,665.83,0.97553949]
[1748951397552,0.80927884,665.84,665.83,1.93359978]
[1748951397756,0.80927884,665.84,665.83,0.95806029]
[1748951402469,1.07078158,665.84,665.83,0.95806029]
[1748951407469,0.8472266,665.84,665.83,0.95806029]
[1748951411175,0.8472266,665.84,665.83,1.59678844]
[1748951415378,0.26150274,665.84,665.83,1.59678844]
[1748951415778,0.12178071,665.84,665.83,1.59678844]
[1748951416175,0.0768209,665.85,665.83,1.59678844]
[1748951416478,0.0768209,665.85,665.84,1.59678844]
[1748951419083,0.3383315,665.85,665.84,1.59678844]
[1748951421478,1.83127305,665.85,665.84,1.59678844]
[1748951422383,0.3383315,665.85,665.84,1.59678844]
[1748951431592,0.3383315,665.85,665.84,2.57463148]
[1748951433696,0.3383315,665.85,665.84,1.59678844]
[1748951435991,0.3383315,665.85,665.84,0.63872815]
[1748951435992,0.19861073,665.85,665.84,0.63872815]
[1748951436194,1.49604449,665.9,665.84,0.63872815]
[1748951436395,1.49604449,665.9,665.85,0.63872815]
[1748951436697,1.49604449,665.9,665.86,0.63872815]
[1748951436892,1.49604449,665.9,665.87,0.63872815]
[1748951437094,1.49604449,665.91,665.88,0.63872815]
[1748951437296,1.49604449,665.91,665.89,0.63872815]
[1748951437593,1.27249191,665.91,665.9,0.63872815]
[1748951437800,1.07,665.98,665.9,1.59681066]
[1748951438093,1.07,665.98,665.94,0.97789466]
[1748951438292,1.07,665.98,665.95,1.59681066]
[1748951438596,1.07,665.98,665.96,1.59681066]
[1748951438797,1.07,665.98,665.97,1.59681066]
[1748951439197,1.33147818,665.98,665.97,1.59681066]
[1748951440392,1.33147818,665.98,665.97,2.57470532]
[1748951440792,1.33147818,665.98,665.97,1.59681066]
[1748951441097,0.26147818,665.98,665.97,1.59681066]
[1748951441396,2.49793977,665.98,665.97,1.59681066]
[1748951441992,0.26147818,665.98,665.97,1.59681066]
[1748951444198,0.26147818,665.98,665.97,0.63872815]
[1748951454207,0.26147818,665.98,665.97,1.59683032]
[1748951456011,0.12175457,665.98,665.97,1.59683032]
[1748951456215,2.297,666.11,665.97,1.59683032]
[1748951456416,0.30025521,666.1,665.98,1.59683032]
[1748951456618,0.30025521,666.1,665.99,1.59683032]
[1748951456811,0.30025521,666.1,666.0,1.59683532]
[1748951457014,0.30025521,666.1,665.67,0.97784466]
[1748951457213,2.24614982,665.91,665.75,0.97784466]
[1748951459118,2.24614982,665.9,665.84,0.97784466]
[1748951459319,0.26151551,665.88,665.73,0.97784466]
[1748951459718,0.26151551,665.88,665.53,0.97784466]
[1748951460021,2.50766533,665.88,665.52,0.97784466]
[1748951460414,0.26151551,665.88,665.86,0.97791288]
[1748951460617,2.24614982,665.87,665.79,0.97791288]
[1748951460818,2.24614982,665.87,665.78,0.97791288]
[1748951461113,2.24614982,665.86,665.78,0.97791288]
[1748951461318,2.24614982,665.84,665.8,0.97791288]
[1748951461519,0.26151551,665.88,665.1,1.12712416]
[1748951461520,2.24614982,665.83,665.74,0.97791288]
[1748951461818,2.24614982,665.85,665.73,0.97791288]
[1748951462115,2.24614982,665.84,665.73,0.97791288]
[1748951462314,2.24614982,665.86,665.69,0.97791288]
[1748951463520,2.24614982,665.86,665.09,0.97784466]
[1748951463521,2.24614982,665.87,665.67,0.97791288]
[1748951464314,2.50766533,665.88,665.66,0.97791288]
[1748951464519,2.50766533,665.88,665.65,0.97791288]
[1748951465219,2.50766533,665.88,665.57,0.97791288]
[1748951465420,0.26151551,665.88,665.55,0.97791288]
[1748951466318,0.26151551,665.88,665.54,0.97791288]
[1748951466519,0.26151551,665.88,665.02,1.12602032]
[1748951466520,0.26151551,665.88,665.45,0.97791288]
[1748951466919,0.26151551,665.88,665.51,0.97791288]
[1748951467518,1.27079696,665.76,665.51,0.97791288]
[1748951468016,0.26151551,665.88,665.57,0.97791288]
[1748951468320,1.502,665.87,665.56,0.97791288]
[1748951468921,1.502,665.87,665.64,0.97791288]
[1748951469519,1.502,665.87,665.63,0.97791288]
[1748951469915,1.502,665.87,665.66,0.97791288]
[1748951470321,1.502,665.87,665.79,0.97791288]
[1748951470620,3.74814982,665.87,665.82,0.97791288]
[1748951471117,3.74814982,665.87,665.26,0.97784466]
[1748951471522,3.74814982,665.87,665.31,0.97784466]
[1748951472219,2.24614982,665.86,665.35,0.97784466]
[1748951472522,2.24614982,665.82,665.35,0.97784466]
[1748951473220,2.24614982,665.82,665.32,0.97784466]
[1748951474024,2.24614982,665.83,665.32,0.97784466]
[1748951474826,2.24614982,665.83,664.97,1.12427173]
[1748951474827,2.24614982,665.83,665.33,0.97784466]
[1748951475128,2.24614982,665.81,665.33,0.97784466]
[1748951475429,2.24614982,665.81,665.47,0.97784466]
[1748951475829,2.24614982,665.84,665.8,0.97478733]
[1748951476021,2.24614982,665.84,664.96,1.12387998]
[1748951476022,2.10639435,665.84,665.79,0.97478733]
[1748951476422,2.10639435,665.84,665.77,0.97478733]
[1748951476624,1.502,665.87,665.73,0.97478733]
[1748951477130,1.502,665.87,665.7,0.97485414]
[1748951477429,1.502,665.87,665.69,0.97485414]
[1748951477629,1.502,665.87,665.67,0.97485414]
[1748951478326,1.502,665.87,665.66,0.97485414]
[1748951479327,1.502,665.87,665.63,0.97485414]
[1748951479632,1.502,665.87,665.62,0.97485414]
[1748951479933,1.502,665.87,665.61,0.97485414]
[1748951480231,1.502,665.87,665.64,0.97485414]
[1748951480433,1.502,665.87,665.63,0.97485414]
[1748951484033,1.502,665.87,665.64,0.97485414]
[1748951484629,1.502,665.87,665.65,0.97485414]
[1748951485235,1.502,665.87,665.62,0.97485414]
[1748951485435,0.807,665.86,665.62,0.97485414]
[1748951485630,0.807,665.86,665.63,0.97485414]
[1748951485835,0.807,665.86,665.68,0.97485414]
[1748951486335,0.807,665.86,665.69,0.97485414]
[1748951486836,0.807,665.86,665.7,0.97485414]
[1748951487036,0.807,665.86,665.82,0.97485414]
[1748951487536,0.807,665.86,665.31,0.97478733]
[1748951488137,0.807,665.86,665.3,0.97478733]
[1748951488637,0.807,665.86,665.31,0.97478733]
[1748951489038,0.807,665.86,665.46,0.97478733]
[1748951489439,0.807,665.86,665.47,0.97478733]
[1748951489640,0.807,665.86,665.48,0.97478733]
[1748951489841,0.807,665.86,665.52,0.97478733]
[1748951490336,0.807,665.86,665.59,0.97478733]
[1748951490642,0.807,665.86,665.61,0.97478733]
[1748951490841,0.807,665.86,665.58,0.97478733]
[1748951491142,0.807,665.86,664.99,1.12276036]
[1748951491336,0.807,665.86,665.53,0.97784466]
[1748951491945,0.807,665.86,665.55,0.97784466]
[1748951492440,0.807,665.86,665.58,0.97784466]
[1748951493343,0.807,665.86,665.7,0.97617877]
[1748951493543,0.807,665.86,665.73,0.97617877]
[1748951494245,0.807,665.86,665.74,0.97617877]
[1748951494445,0.807,665.86,665.73,0.97617877]
[1748951494748,0.807,665.86,665.76,0.97617877]